Cogmind - Beta 13 @@@ ROGUE MODE // 2024.04.22 @ 20:22:36 Player: arcadio rl Result: Destroyed by S-10 Pest with Light Assault Rifle Performance ------------- Evolutions (0) 0 Regions Visited (2) 400 Robots Destroyed (23) 115 Value Destroyed (371) 371 Prototype IDs (2) 40 Alien Tech Used (0) 0 Bonus (0) 0 TOTAL SCORE: 926 Bonus ------- None Cogmind --------- Core Integrity 0/250 Matter 290/300 Energy 91/100 System Corruption 0% Temperature Cool (2) Movement Hovering (56) Location -10/Mines Parts ------- > --- POWER (1) -------- (None) > --- PROPULSION (2) --- Improved Hover Unit Improved Hover Unit > --- UTILITY (2) ------ Small Storage Unit Seismic Detector > --- WEAPON (2) ------- Small Laser Grenade Launcher > --- INVENTORY (8) ---- Wheel Improved Hover Unit Improved Hover Unit Flight Unit Improved Targeting Computer Datajack Hammer Peak State ------------ > --- POWER ------------ Ion Engine > --- PROPULSION ------- Improved Hover Unit Improved Hover Unit > --- UTILITY ---------- Small Storage Unit Signal Interpreter > --- WEAPON ----------- Small Laser Hammer > --- INVENTORY -------- Light Treads Light Treads Wheel Flight Unit Improved Targeting Computer Improved Targeting Computer EM Pulse Gun Grenade Launcher [Rating: 10] Favorites ----------- Power Ion Engine Engine Ion Engine Propulsion Improved Hover Unit Treads Light Treads Leg Aluminum Leg Wheel Wheel Hover Unit Improved Hover Unit Utility Small Storage Unit Device Seismic Detector Storage Small Storage Unit Processor Signal Interpreter Weapon Hammer Energy Gun Small Laser Ballistic Gun Light Assault Rifle Launcher Grenade Launcher Special Weapon Mining Laser Impact Weapon Hammer Build | -11 -10 -10 ------- Run | Yrd Mat Min Slots Evolved . | . . . Power . | . . . Propulsion . | . . . Utility . | . . . Weapon . | . . . Parts Attached 27 | 7 18 2 Power 3 | 1 2 . Engine 3 | 1 2 . Core . | . . . Reactor . | . . . Propulsion 10 | 2 8 . Treads 4 | . 4 . Leg 2 | 2 . . Wheel 2 | . 2 . Hover 2 | . 2 . Flight . | . . . Utility 3 | 1 2 . Device 1 | . 1 . Storage 1 | 1 . . Processor 1 | . 1 . Hackware . | . . . Protection . | . . . Artifact . | . . . Weapon 11 | 3 6 2 Energy Gun 5 | 2 2 1 Energy Cannon . | . . . Ballistic Gun 1 | 1 . . Ballistic Cannon . | . . . Launcher 2 | . 1 1 Special Weapon 1 | . 1 . Impact Weapon 2 | . 2 . Slashing Weapon . | . . . Piercing Weapon . | . . . Special Melee Weapon . | . . . Unidentified Prototypes . | . . . Parts Lost 7 | . 5 2 Power 3 | . 2 1 Propulsion 2 | . 2 . Utility . | . . . Weapon 2 | . 1 1 Highest Loss Streak 2 | . 2 2 To Critical Strikes . | . . . Average Slot Usage (%) 89 | . 88 95 Engine 10 | . 11 9 Treads 5 | . 6 . Leg 6 | . 6 . Wheel 1 | . 1 . Hover 13 | . 11 28 Device 2 | . 1 14 Storage 14 | . 14 14 Processor 7 | . 7 . Energy Gun 4 | . 4 4 Ballistic Gun 5 | . 6 . Launcher 1 | . . 13 Special Weapon 3 | . 2 9 Impact Weapon 12 | . 13 . Naked Turns . | . . . Heaviest Build 15 | 10 14 15 Greatest Support 40 | 20 40 14 Greatest Overweight (x) 4 | . 4 1 Average Overweight (x) . | . . . Largest Inventory Capacity 8 | 8 8 8 Average Capacity 7 | 6 8 8 Most Carried 8 | 6 8 8 Average Carried 6 | 3 6 7 Final Capacity 8 | 8 8 8 Final Carried 8 | 6 8 7 Class Distribution -------------------- 100% | Mutant Dominant Class ---------------- Mutant | -10/Materials Mutant | -10/Mines Resources | -11 -10 -10 ----------- Run | Yrd Mat Min Matter Collected 515 | 152 343 20 Remotely . | . . . Salvage Created 718 | . 678 40 Parts 39 | . 33 6 Haulers Intercepted 2 | . 2 . Recyclers Shooed 1 | . 1 . Parts Field Recycled . | . . . Retrieved Matter . | . . . Parts Self-Destructed . | . . . Prevented . | . . . Kills | -11 -10 -10 ------- Run | Yrd Mat Min Combat Hostiles Destroyed 16 | . 12 4 Melee 5 | . 5 . Guns 5 | . 5 . AOE 4 | . . 4 Classes Destroyed 5 | . 5 . Hauler 2 | . 2 . Recycler 3 | . 3 . Watcher 2 | . 2 . Swarmer 10 | . 6 4 Grunt 6 | . 6 . Best Kill Streak 4 | . 4 3 Combat Bots Only 3 | . 3 3 Max Kills in Single Turn 3 | . 1 3 Gunslinging . | . . . Exploded 3 | . . 3 Melee 1 | . 1 . Uniques/NPCs Destroyed . | . . . Combat | -11 -10 -10 -------- Run | Yrd Mat Min Hostile Shots Fired 150 | . 121 29 Missed 36 | . 25 11 Damage Taken 1159 | . 916 243 Core 252 | . 229 23 Absorbed by Shields . | . . . Core Remaining (%) 100 | 100 . . Volleys Fired 90 | . 88 2 Largest 2 | . 2 2 Hottest 70 | . 70 70 Shots Fired 92 | . 89 3 Gun 89 | . 88 1 Cannon . | . . . Launcher 3 | . 1 2 Special . | . . . Kinetic 60 | . 60 . Thermal 29 | . 28 1 Explosive 3 | . 1 2 Electromagnetic . | . . . Robot Hit Streak 8 | . 8 6 Robot Miss Streak 4 | . 4 2 Penetration Max . | . . . Secondary Targets . | . . . Shots Hit Robots 76 | . 75 1 Core Hits 29 | . 24 5 Critical Kills 3 | . 3 . Critical Parts Destroyed 5 | . 5 . Critical Strikes 8 | . 8 . Destroy 1 | . 1 . Smash 7 | . 7 . Melee Attacks 30 | . 30 . Impact 30 | . 30 . Slashing . | . . . Piercing . | . . . Sneak Attacks 2 | . 2 . Combat Hostiles 1 | . 1 . Follow-up Attacks . | . . . Damage Inflicted 1333 | . 1147 186 Guns 507 | . 507 . Cannons . | . . . Explosions 204 | . 27 177 Melee 613 | . 613 . Ramming 9 | . . 9 Kinetic 271 | . 271 . Thermal 236 | . 236 . Explosive 204 | . 27 177 Electromagnetic . | . . . Impact 613 | . 613 . Slashing . | . . . Piercing . | . . . Highest Corruption . | . . . Average Corruption . | . . . Corruption Purged . | . . . Corruption Blocked . | . . . Overload Shots . | . . . Overflow Damage 146 | . 139 7 Projectiles . | . . . Explosions 7 | . . 7 Melee 139 | . 139 . Knockbacks 2 | . 2 . Impact 2 | . 2 . Kinetic . | . . . Secondary . | . . . Self-Inflicted Damage 40 | . . 40 Shots 2 | . . 2 Rammed 2 | . . 2 Targets Rammed 2 | . . 2 Kicked . | . . . Crushed . | . . . Highest Temperature 42 | . 42 . Average Temperature 12 | . 12 . Received Heat Transfer 363 | . 270 93 Siege Activations . | . . . Robots Corrupted . | . . . Combat Hostiles . | . . . Parts Fried 12 | . 12 . Impact Corruptions 10 | . 10 . Robots Melted . | . . . Combat Hostiles . | . . . Parts Melted . | . . . Heat Transferred 550 | . 550 . Parts Sabotaged . | . . . Parts Stolen . | . . . Parts Stripped . | . . . Power Chain Reactions . | . . . Alert | -11 -10 -10 ------- Run | Yrd Mat Min Peak Influence 202 | . 202 131 Initial 27 | . . 27 Average 64 | . 61 113 Maximum Alert Level 1 | . 1 . Low Security (%) 99 | 100 99 100 Level 1 . | . . . Level 2 . | . . . Level 3 . | . . . Level 4 . | . . . Level 5 . | . . . High Security . | . . . Max Security . | . . . Squads Dispatched 3 | . 3 . Investigation 1 | . 1 . Extermination . | . . . Reinforcement 2 | . 2 . Assault . | . . . Garrison . | . . . Intercept . | . . . Searches Triggered . | . . . Construction Impeded . | . . . Haulers Reinforced . | . . . Active Scanning Responses . | . . . Cargo Convoy Interrupts . | . . . Stealth | -11 -10 -10 --------- Run | Yrd Mat Min Distress Signals 1 | . 1 . Communications Jammed . | . . . Distress Signals . | . . . Times Spotted 42 | . 22 20 Peak Tracking Total 14 | . 4 14 Tactical Retreats 2 | . 1 1 Traps | -11 -10 -10 ------- Run | Yrd Mat Min Traps Triggered 1 | . 1 . Indirectly . | . . . Trap Hack Attempts . | . . . Triggered . | . . . Disarmed . | . . . Reprogrammed . | . . . Reused . | . . . Traps Extracted . | . . . Installed . | . . . Triggered . | . . . Machines | -11 -10 -10 ---------- Run | Yrd Mat Min Machines Disabled . | . . . Max in Single Turn . | . . . Machines Repaired . | . . . Machines Dismantled . | . . . Machines Sabotaged . | . . . Overloaded Fab Kills . | . . . Hacking | -11 -10 -10 --------- Run | Yrd Mat Min Machines Accessed 5 | . 5 . Terminals 4 | . 4 . Fabricators . | . . . Repair Stations . | . . . Recycling Units 1 | . 1 . Scanalyzers . | . . . Garrison Access . | . . . Total Hacks 16 | . 16 . Successful 5 | . 5 . Failed 11 | . 11 . Catastrophic 2 | . 2 . Database Lockouts . | . . . Manual 7 | . 7 . Terminals 14 | . 14 . Fabricators . | . . . Repair Stations . | . . . Recycling Units 2 | . 2 . Scanalyzers . | . . . Garrison Access . | . . . Terminal Hacks 2 | . 2 . Prototype ID Bank 1 | . 1 . Hauler Manifests 1 | . 1 . Fabricator Hacks . | . . . Repair Station Hacks . | . . . Recycling Unit Hacks 1 | . 1 . Retrieve Components 1 | . 1 . Scanalyzer . | . . . Garrison Access Hacks . | . . . Unauthorized Hacks 2 | . 2 . Terminals 2 | . 2 . Botnet 2 | . 2 . Fabricators . | . . . Repair Stations . | . . . Recycling Units . | . . . Scanalyzers . | . . . Garrison Access . | . . . Data Cores Recovered . | . . . Used . | . . . Hacking Detections 5 | . 5 . Full Trace Events . | . . . Feedback Events . | . . . Feedback Blocked . | . . . Robot Schematics Acquired . | . . . Robots Built . | . . . Authchips . | . . . Time . | . . . Total Robot Build Rating . | . . . Part Schematics Acquired . | . . . Parts Built . | . . . Authchips . | . . . Time . | . . . Total Part Build Rating . | . . . Parts Repaired . | . . . Time . | . . . Parts Recycled . | . . . Recycled Matter . | . . . Retrieved Matter . | . . . Retrieved Components 5 | . 5 . Parts Scanalyzed . | . . . Part Schematics Acquired . | . . . Parts Damaged . | . . . Bothacking | -11 -10 -10 ------------ Run | Yrd Mat Min Used RIF Installer . | . . . Robots Hacked . | . . . Non-combat . | . . . Combat . | . . . Robot Hacks Applied . | . . . Relay Couplers Released . | . . . Fabnet Peak Effective % . | . . . Robots Rewired . | . . . Allies Hacked . | . . . Hacks Repelled . | . . . Allies | -11 -10 -10 -------- Run | Yrd Mat Min Total Allies . | . . . Largest Group . | . . . Highest-Rated Group . | . . . Highest-Rated Ally . | . . . Total Orders . | . . . Ally Attacks . | . . . Total Damage . | . . . Kills . | . . . Allies Corrupted . | . . . Allies Melted . | . . . Intel | -11 -10 -10 ------- Run | Yrd Mat Min Robot Analysis Total . | . . . Derelict Logs Recovered 1 | . . 1 Drone Launches . | . . . Drone Recoveries . | . . . Exploration | -11 -10 -10 ------------- Run | Yrd Mat Min Turns Passed 1829 | 74 1563 192 Spaces Moved 1318 | 51 1049 218 Core 7 | 4 3 . Treads 142 | . 142 . Legs 286 | 47 239 . Wheels 41 | . 41 . Hover 842 | . 624 218 Flight . | . . . Fastest Speed 50 | 50 56 56 Average Speed 92 | 114 92 84 Slowest Speed 250 | 120 250 116 Overloaded Moves . | . . . Propulsion Burnouts . | . . . Robots Hopped . | . . . Cave-ins Triggered . | . . . Exploration Rate (%) 51 | 3 88 64 Regions Visited 2 Branch Regions 1 Pre-discovered Areas . | . . . Known Exits Taken 1 | . 1 . Unknown Exits Taken 1 | 1 . . Scrap Searched . | . . . Spaces Dug . | . . . Terrain Destroyed 26 | . 5 21 Melee . | . . . Projectile . | . . . AOE 26 | . 5 21 Terrain Rammed . | . . . Walls Destroyed . | . . . Machines Disabled . | . . . Actions | -11 -10 -10 --------- Run | Yrd Mat Min Total 1797 | 63 1510 224 Wait 304 | . 304 . Move 1316 | 50 1048 218 Hop . | . . . Pick Up 13 | 5 8 . Fast Attach 14 | 7 7 . Attach 9 | . 8 1 Detach 8 | 1 7 . Swap 4 | . 3 1 Drop 7 | . 7 . Fire 90 | . 88 2 Melee 30 | . 30 . Ram 2 | . . 2 Kick . | . . . Crush . | . . . Escape Stasis . | . . . Rewire . | . . . Trap . | . . . Miscellaneous . | . . . Route ------- -11/Scrapyard -10/Materials (discovered 4 exits: *Mat x2 / *Min x2) -10/Mines History --------- Turn | Location | Event 13 | -11/Scrapyard | Discovered new exit (range 16) 75 | -11/Scrapyard | Entered Materials 327 | -10/Materials | Build established: Mutant 796 | -10/Materials | Core integrity fell below 50% 834 | -10/Materials | Core integrity fell below 20% 1031 | -10/Materials | Discovered new exit (range 16) 1138 | -10/Materials | Identified exit to Materials 1253 | -10/Materials | Discovered new exit (range 16) 1324 | -10/Materials | Discovered new exit (range 12) 1331 | -10/Materials | Identified exit to Mines 1412 | -10/Materials | Discovered exit to Materials (range 5) 1638 | -10/Materials | Entered Mines 1660 | -10/Mines | Learned Materials trap positions 1752 | -10/Mines | Assembled infested the area 1830 | -10/Mines | Destroyed by S-10 Pest with Light Assault Rifle Last Messages --------------- Data stored: Materials trap records. 01695_ K-01 Serf collects debris. 01752_ ALERT: Infestation in the mines, dispatching Demolisher response squad. 01762_ Mining Laser destroyed. 01763_ K-01 Serf collects debris. 01773_ Ion Engine destroyed. 01775_ G-34 Mercenary shuts down. 01775_ as-42791 sneak attacks. 01776_ G-34 Mercenary destroyed. 01776_ G-47 Trooper destroyed. 01779_ as-72838 destroyed. 01795_ K-01 Serf collects debris. 01806_ Acquired 11 matter. 01807_ Acquired 1 matter. 01816_ K-01 Serf collects debris. 01826_ Slammed into S-10 Pest. 01830_ K-01 Serf collects debris. 01830_ Destroyed Lgt. Ion Engine. 01830_ S-10 Pest destroyed. Map ----- +----------------------------------------------------+ | ????????# ???????????????????????# ### | | ???????? #??????????????????##### | | ???????? #???????????####??# | | ???????? ####??????## #??# | | ????????? ###????# #??# ### | | ??????????# ##??## #??# #?## | | ????????????# #?## #??# #??# | | ?????? ??????# ### #???# #??# | | ?????# ####??# ##### #??## | | ??????# ### ##### #???### | | ???????# #### % #?????? | | ????????# #??## #?????? | | ????????### #???## ## ### #?????? | | ??????????## #????###### ### #?????? | | ???????????## ##????????## ### #??#### | | ????????????# ##????###### ### #### | | ????????????## ##???# ### | | ?????????????### k ##??# ####### | | ???????????????# #??# #?????# | | ???????????????# #??# #?????# | | ???????????????## ##### ###???## | | ????????????????## ### #????### | | ?????????????????## ##?# """ #??????## | | ???????????####???# #??# """ #???????# | | ???????????# ??# ##?# """ #??????# | | ???????????# """??# @ #?# #??????## | | ???????????# """ # #?# #???????###### | | ???????????# """ #?# #????????????? | | ???????????# % s #?########????????????? | | ???????????# = #?????????????????????? | | ???????????############?????????????????????? | | ????????????????????????????????????????????? | | ????????????????????????????????????????????? | | | | | | | | | | | | | | | | | | | | | | | | | | | | | | | | | | | +----------------------------------------------------+ Best States ------------- Heat Dissipation 25 Energy Generation 10 Energy Capacity 250 Matter Stores 300 Matter Capacity 300 Sight Range 16 Terrain Scan Density 10 Evasion (%) 55 Recoil Reduction 2 Item Schematics ----------------- None Robot Schematics ------------------ None Fabricated ------------ Nothing Alien Tech Used ----------------- None Achievements -------------- None Challenges ------------ None Game ------ Seed QuantumThrusterMonowheel Manual? 0 Play Time 00:23:15 Cumulative 120.6 hours Start 2024.04.22 @ 19:57:10 End 2024.04.22 @ 20:22:36 Sessions 1 Manual Loads 0 Difficulty Rogue Special Mode None Game No. 96 Rogue 96 Adventurer 0 Explorer 0 Win Type - Total 0 Types 0/0/0/0/0/0/0/0/0 Lore% 52 Gallery% 53 Achievement% 41 Wizard Run 0 Options --------- Layout 1 ASCII 0 Keyboard 1 Movement Numpad Keybinds 0 Fullscreen 1 Font 24/Smallcaps Map View 50x35 Zoom Use 0% Tactical HUD 1 Map Filters NONE Filters NONE Steam 1 RUN: 08d4e928-575e-4240-a793-c1aa0cba855e